bitfinex/quotes_BTCUSD_20230120
["timestamp","ask_amount","ask_price","bid_price","bid_amount"]
[1674209201596,2.30646021,20953.0,20952.0,0.0778917]
[1674209201888,2.42081571,20953.0,20952.0,0.0778917]
[1674209202420,2.12081571,20953.0,20952.0,0.0778917]
[1674209202682,1.70034721,20953.0,20952.0,0.0778917]
[1674209207779,2.03642221,20953.0,20952.0,0.0778917]
[1674209208045,2.15077771,20953.0,20952.0,0.0778917]
[1674209208316,2.03642221,20953.0,20952.0,0.0778917]
[1674209208586,2.00034721,20953.0,20952.0,0.0778917]
[1674209208814,2.44998271,20953.0,20952.0,0.0778917]
[1674209209075,2.03562721,20953.0,20952.0,0.0778917]
[1674209210098,2.14998271,20953.0,20952.0,0.0778917]
[1674209210345,2.37657673,20953.0,20952.0,0.0778917]
[1674209210566,2.26237673,20953.0,20952.0,0.0778917]
[1674209210822,2.25147973,20953.0,20952.0,0.0778917]
[1674209211338,2.65212829,20953.0,20952.0,0.0778917]
[1674209211600,1.95147973,20953.0,20952.0,0.0778917]
[1674209211830,1.83712423,20953.0,20952.0,0.0778917]
[1674209212087,1.95147973,20953.0,20952.0,0.0778917]
[1674209212345,2.25147973,20953.0,20952.0,0.0778917]
[1674209212865,1.95147973,20953.0,20952.0,0.0778917]
[1674209213348,1.83712423,20953.0,20952.0,0.0778917]
[1674209213606,1.51274123,20953.0,20952.0,0.0778917]
[1674209215394,2.24653373,20953.0,20952.0,0.0778917]
[1674209217729,2.41811537,20953.0,20952.0,0.0778917]
[1674209217985,2.24653373,20953.0,20952.0,0.0778917]
[1674209218245,2.09867837,20953.0,20952.0,0.0778917]
[1674209218504,1.96313278,20953.0,20952.0,0.0778917]
[1674209219015,2.55918166,20953.0,20952.0,0.0778917]
[1674209219274,2.33033821,20953.0,20952.0,0.0778917]
[1674209219530,2.4447572,20953.0,20952.0,0.0778917]
[1674209219835,2.33033821,20953.0,20952.0,0.0778917]
[1674209220414,2.44453821,20953.0,20952.0,0.0778917]
[1674209220651,2.30617623,20953.0,20952.0,0.0778917]
[1674209220909,2.67242913,20953.0,20952.0,0.0778917]
[1674209221164,2.13459459,20953.0,20952.0,0.0778917]
[1674209221462,2.67242755,20953.0,20952.0,0.0778917]
[1674209221954,2.83886728,20953.0,20951.0,0.24564105]
[1674209222209,0.93879596,20952.0,20951.0,0.24564105]
[1674209222466,3.14930141,20952.0,20951.0,0.24564105]
[1674209222947,3.51549156,20952.0,20951.0,0.24564105]
[1674209223207,3.14930005,20952.0,20951.0,0.24564105]
[1674209223476,2.83863219,20952.0,20951.0,0.25164105]
[1674209223707,2.83863219,20952.0,20951.0,0.24564105]
[1674209223937,2.48310005,20952.0,20951.0,0.25154174]
[1674209224168,2.31145445,20952.0,20951.0,0.25154174]
[1674209224437,2.4830593,20952.0,20951.0,0.25154174]
[1674209224695,2.84915512,20952.0,20951.0,0.25154174]
[1674209226035,2.31145445,20952.0,20951.0,0.25154174]
[1674209226295,2.79405664,20952.0,20951.0,0.25154174]
[1674209226656,3.09746661,20952.0,20951.0,0.25154174]
[1674209226814,3.32627971,20952.0,20951.0,0.25154174]
[1674209228391,2.78862579,20952.0,20951.0,0.25154174]
[1674209228946,2.96020327,20952.0,20951.0,0.25154174]
[1674209229242,3.44280535,20952.0,20951.0,0.25154174]
[1674209229754,3.80850654,20952.0,20951.0,0.25154174]
[1674209230014,3.27122798,20952.0,20951.0,0.25154174]
[1674209230276,3.52261758,20952.0,20951.0,0.25154174]
[1674209230743,3.44278339,20952.0,20951.0,0.25154174]
[1674209233526,3.47302579,20952.0,20951.0,0.25154174]
[1674209233797,3.72448531,20952.0,20951.0,0.25154174]
[1674209234051,4.01037218,20952.0,20951.0,0.25154174]
[1674209234327,3.47302579,20952.0,20951.0,0.25154174]
[1674209234576,3.64454345,20952.0,20951.0,0.25154174]
[1674209234835,4.01034531,20952.0,20951.0,0.25154174]
[1674209235117,4.4929475,20952.0,20951.0,0.25154174]
[1674209235948,4.01034531,20952.0,20951.0,0.25154174]
[1674209236777,3.72303224,20952.0,20951.0,0.25154174]
[1674209237069,3.85994049,20952.0,20951.0,0.25154174]
[1674209237331,4.04965232,20952.0,20951.0,0.25154174]
[1674209237592,3.93516289,20952.0,20951.0,0.25154174]
[1674209237852,3.5300258,20952.0,20951.0,0.25154174]
[1674209238119,3.93259243,20952.0,20951.0,0.25154174]
[1674209238352,3.5300258,20952.0,20951.0,0.25154174]
[1674209238615,3.8832356,20952.0,20951.0,0.25154174]
[1674209238870,3.5300258,20952.0,20951.0,0.25154174]
[1674209240710,3.64451523,20952.0,20951.0,0.25154174]
[1674209241496,3.79414189,20952.0,20951.0,0.25154174]
[1674209242076,3.79908539,20952.0,20951.0,0.25154174]
[1674209242270,3.77327094,20952.0,20951.0,0.25154174]
[1674209243324,3.88759662,20952.0,20951.0,0.25154174]
[1674209243583,3.20289662,20952.0,20951.0,0.25154174]
[1674209244112,2.73100213,20952.0,20951.0,0.25154174]
[1674209244397,3.21091887,20952.0,20951.0,0.27808787]
[1674209244678,3.09671887,20952.0,20951.0,0.27808787]
[1674209244920,2.92522943,20952.0,20951.0,0.27808787]
[1674209245496,2.47522943,20952.0,20951.0,0.27808787]
[1674209245753,1.89761237,20952.0,20951.0,0.27808787]
[1674209246250,1.98087874,20952.0,20951.0,0.25154174]
[1674209246512,2.31064374,20952.0,20951.0,0.25154174]
[1674209246781,1.98087874,20952.0,20951.0,0.25154174]
[1674209247041,2.30879074,20952.0,20951.0,0.25154174]
[1674209247337,1.98087874,20952.0,20951.0,0.25154174]
[1674209247570,2.29097774,20952.0,20951.0,0.25154174]
[1674209248652,1.85236818,20952.0,20951.0,0.25154174]
[1674209248889,2.47817018,20952.0,20951.0,0.25154174]
[1674209249395,1.98087874,20952.0,20951.0,0.25154174]
[1674209249658,2.15236818,20952.0,20951.0,0.25154174]
[1674209249910,2.30384274,20952.0,20951.0,0.25154174]
[1674209250140,1.98087874,20952.0,20951.0,0.25154174]
[1674209250658,2.08907681,20952.0,20951.0,0.25154174]
[1674209250921,2.08914502,20952.0,20951.0,0.25146437]
[1674209251187,2.20356354,20952.0,20951.0,0.25146437]
[1674209251971,2.58724141,20952.0,20951.0,0.25133729]
[1674209252247,2.43634198,20952.0,20951.0,0.25133729]
[1674209252594,2.20356354,20952.0,20951.0,0.25133729]
[1674209253031,2.67969525,20952.0,20951.0,0.25133729]
[1674209253288,2.24170743,20952.0,20951.0,0.25133729]
[1674209253516,2.35500743,20952.0,20951.0,0.25133729]
[1674209253755,2.1833851,20952.0,20951.0,0.25133729]
[1674209253988,2.355008,20952.0,20951.0,0.25133729]
[1674209254248,2.1833851,20952.0,20951.0,0.25133729]
[1674209254495,2.71746422,20952.0,20951.0,0.25133729]
[1674209254754,2.48865112,20952.0,20951.0,0.25133729]
[1674209255525,3.01292729,20952.0,20951.0,0.25133729]
[1674209255792,3.12622729,20952.0,20951.0,0.25133729]
[1674209258599,2.67916406,20952.0,20951.0,0.25133729]
[1674209259397,3.02242924,20952.0,20951.0,0.25133729]
[1674209259656,3.75580422,20952.0,20951.0,0.02739237]
[1674209259928,0.17967924,20950.0,20949.0,0.01391954]
[1674209260193,3.3011023,20950.0,20949.0,0.01391954]
[1674209260966,3.3081023,20950.0,20949.0,0.01391954]
[1674209262012,3.58715246,20950.0,20949.0,0.01391954]
[1674209262270,3.67815246,20950.0,20949.0,0.01391954]
[1674209263272,4.11661346,20950.0,20949.0,0.01391954]
[1674209263535,3.8305633,20950.0,20949.0,0.01391954]
[1674209265473,3.3921023,20950.0,20949.0,0.01391954]
[1674209265726,3.80360138,20950.0,20949.0,0.01391954]
[1674209265960,3.80360138,20950.0,20949.0,0.25391954]
[1674209266189,4.08950963,20950.0,20949.0,0.25391954]
[1674209266962,3.67795429,20950.0,20949.0,0.25391954]
[1674209267218,4.16055648,20950.0,20949.0,0.25391954]
[1674209267479,4.57205556,20950.0,20949.0,0.01391954]
[1674209269070,4.16055648,20950.0,20949.0,0.01391954]
[1674209269817,4.57205556,20950.0,20949.0,0.01391954]
[1674209271427,4.08945337,20950.0,20949.0,0.01391954]
[1674209271693,4.31807405,20950.0,20949.0,0.01391954]
[1674209272191,4.09795337,20950.0,20949.0,0.01391954]
[1674209272987,3.91504812,20950.0,20949.0,0.01391954]
[1674209273531,5.0602822,20950.0,20949.0,0.01391954]
[1674209273792,4.651246,20950.0,20949.0,0.01391954]
[1674209274057,5.01130089,20950.0,20949.0,0.01391954]
[1674209274316,4.59980181,20950.0,20949.0,0.01391954]
[1674209274854,4.39805552,20950.0,20949.0,0.01391954]
[1674209275124,4.06830576,20950.0,20949.0,0.01391954]
[1674209275615,4.23973793,20950.0,20949.0,0.01391954]
[1674209275887,5.08227289,20950.0,20949.0,0.01391954]
[1674209276137,4.5996707,20950.0,20949.0,0.01391954]
[1674209276930,4.5996707,20950.0,20949.0,0.18391954]
[1674209277730,4.78257595,20950.0,20949.0,0.18391954]
[1674209277955,4.83075093,20950.0,20949.0,0.18391954]
[1674209278185,4.90185404,20950.0,20949.0,0.18391954]
[1674209278509,5.02750113,20950.0,20949.0,0.18391954]
[1674209279224,5.02750113,20950.0,20948.0,0.01575713]
[1674209279488,2.0342492,20949.0,20948.0,0.01575713]
[1674209279752,3.70008966,20949.0,20948.0,0.01575713]
[1674209280647,3.2889472,20949.0,20948.0,0.01575713]
[1674209280926,2.84874283,20949.0,20948.0,0.01575713]
[1674209281190,3.02015995,20949.0,20948.0,0.01575713]
[1674209281449,3.37837296,20949.0,20948.0,0.01575713]
[1674209282492,3.80526379,20949.0,20948.0,0.01575713]
[1674209283217,4.21640625,20949.0,20948.0,0.01575713]
[1674209283481,3.80526379,20949.0,20948.0,0.01575713]
[1674209284262,3.57671065,20949.0,20948.0,0.01575713]
[1674209285311,3.80521405,20949.0,20948.0,0.01575713]
[1674209286389,3.46251065,20949.0,20948.0,0.01575713]
[1674209286654,3.69105394,20949.0,20948.0,0.01575713]
[1674209287204,3.28185307,20949.0,20948.0,0.01575713]
[1674209287503,3.64030708,20949.0,20948.0,0.01575713]
[1674209287767,2.90594441,20949.0,20948.0,0.01575713]
[1674209288029,2.49187545,20949.0,20948.0,0.01575713]
[1674209288291,2.18558545,20949.0,20948.0,0.01575713]
[1674209289096,1.70838376,20949.0,20948.0,0.01575713]
[1674209289362,1.44448299,20949.0,20948.0,0.01575713]
[1674209289634,2.13004288,20949.0,20948.0,0.01575713]
[1674209289908,2.07037899,20949.0,20948.0,0.01575713]
[1674209290200,1.74448299,20949.0,20948.0,0.01575713]
[1674209290464,1.74448299,20949.0,20948.0,0.01223507]
[1674209290736,1.63020943,20949.0,20948.0,0.01223507]
[1674209290992,1.96582043,20949.0,20948.0,0.01223507]
[1674209291242,2.08015985,20949.0,20948.0,0.01223507]
[1674209291745,2.19436372,20949.0,20948.0,0.01223507]
[1674209291746,2.19445163,20949.0,20948.0,0.01223507]
[1674209292004,2.55413285,20949.0,20948.0,0.01223507]
[1674209292529,2.32558956,20949.0,20948.0,0.01223507]
[1674209292806,2.80279125,20949.0,20948.0,0.01047853]
[1674209293048,3.1946465,20949.0,20948.0,0.00872199]
[1674209293308,2.80279125,20949.0,20948.0,0.00698355]
[1674209294418,2.51709983,20949.0,20948.0,0.00698355]
[1674209294943,2.8031999,20949.0,20948.0,0.00698355]
[1674209295492,2.51709983,20949.0,20948.0,0.00698355]
[1674209295731,2.92824229,20949.0,20948.0,0.00698355]
[1674209296003,2.51709983,20949.0,20948.0,0.00698355]
[1674209296538,2.96705611,20949.0,20948.0,0.00698355]
[1674209296834,3.37819857,20949.0,20948.0,0.00698355]
[1674209297094,3.31048781,20949.0,20948.0,0.00698355]
[1674209297357,0.0055908,20947.0,20945.0,0.01575713]
[1674209297622,0.0055908,20947.0,20942.0,0.01833372]
[1674209297623,4.07746829,20946.0,20942.0,0.01833372]
[1674209297893,0.22885616,20943.0,20942.0,0.01833372]
[1674209298296,4.13980742,20943.0,20942.0,0.01833372]
[1674209298297,3.30548989,20943.0,20942.0,0.01833372]
[1674209298523,3.41954824,20943.0,20942.0,0.01833372]
[1674209298747,3.13374545,20943.0,20942.0,0.01833372]
[1674209298966,3.27544545,20943.0,20942.0,0.01833372]
[1674209299675,3.44692911,20943.0,20942.0,0.01833372]
[1674209300132,3.42360335,20943.0,20942.0,0.01833372]
[1674209300372,3.53788979,20943.0,20942.0,0.01833372]
[1674209302452,3.94834581,20943.0,20942.0,0.01833372]
[1674209302678,4.3649763,20943.0,20942.0,0.01833372]
[1674209303118,4.59362119,20943.0,20942.0,0.01833372]
[1674209303349,4.3649763,20943.0,20942.0,0.01833372]
[1674209303771,3.53720335,20943.0,20942.0,0.01833372]
[1674209304124,3.65142586,20943.0,20942.0,0.01833372]
[1674209304423,4.06256832,20943.0,20942.0,0.01833372]
[1674209304764,4.1854907,20943.0,20942.0,0.01833372]
[1674209305014,3.95684581,20943.0,20942.0,0.01833372]
[1674209305714,3.65987391,20943.0,20942.0,0.01833372]
[1674209306697,3.48839025,20943.0,20942.0,0.01833372]
[1674209307469,3.7524042,20943.0,20942.0,0.01833372]
[1674209308757,3.25211969,20943.0,20942.0,0.01833372]
[1674209309014,3.68202399,20943.0,20942.0,0.01833372]
[1674209310336,3.25211969,20943.0,20942.0,0.01833372]
[1674209311169,3.64013157,20943.0,20942.0,0.01833372]
[1674209311391,3.75430213,20943.0,20942.0,0.01833372]
[1674209315237,3.36629025,20943.0,20942.0,0.01833372]
[1674209317542,3.25211969,20943.0,20942.0,0.01833372]
[1674209317811,3.36629025,20943.0,20942.0,0.01833372]
[1674209318325,3.25211969,20943.0,20942.0,0.01833372]
[1674209318864,3.36629025,20943.0,20942.0,0.01833372]
[1674209319108,3.25211969,20943.0,20942.0,0.01833372]
[1674209319370,3.78290915,20943.0,20942.0,0.01833372]
[1674209319626,3.36629025,20943.0,20942.0,0.01833372]
[1674209319872,3.25211969,20943.0,20942.0,0.01833372]
[1674209322095,3.36629025,20943.0,20942.0,0.01827288]
[1674209322654,3.25211969,20943.0,20942.0,0.01827288]
[1674209322968,3.66195237,20943.0,20942.0,0.01827288]
[1674209324376,3.25211969,20943.0,20942.0,0.01827288]
[1674209324617,3.6632406,20943.0,20942.0,0.01827288]
[1674209324835,3.61656317,20943.0,20942.0,0.01827288]
[1674209325053,3.25211969,20943.0,20942.0,0.01827288]
[1674209325870,3.64013157,20943.0,20942.0,0.01827288]
[1674209327361,3.25211969,20943.0,20942.0,0.01827288]
[1674209328084,3.36629025,20943.0,20942.0,0.01827288]
[1674209329070,3.47959025,20943.0,20942.0,0.01827288]
[1674209329317,4.13165134,20943.0,20942.0,0.01827288]
[1674209329553,4.13146929,20943.0,20942.0,0.01827288]
[1674209329803,4.27085676,20943.0,20942.0,0.01827288]
[1674209330061,4.36185676,20943.0,20942.0,0.00371742]
[1674209330310,4.36185676,20943.0,20942.0,4.2e-07]
[1674209330311,4.38405676,20943.0,20942.0,4.2e-07]
[1674209330622,0.15,20942.0,20940.0,0.01779208]
[1674209330863,2.86595129,20941.0,20940.0,0.01779208]
[1674209331115,2.69454046,20941.0,20940.0,0.01779208]
[1674209331369,0.15,20940.0,20939.0,0.01867594]
[1674209331623,2.71033009,20940.0,20939.0,0.01867594]
[1674209331851,2.53891345,20940.0,20939.0,0.01867594]
[1674209332338,3.2051804,20940.0,20933.0,2.42967998]
[1674209332602,0.15,20937.0,20933.0,2.42967998]
[1674209332850,0.15,20937.0,20933.0,1.42967998]
[1674209332851,2.41886897,20936.0,20933.0,1.42967998]
[1674209333118,2.10492097,20936.0,20933.0,1.02129586]
[1674209333368,0.34995736,20935.0,20933.0,0.90779586]
[1674209333646,1.433073,20934.0,20933.0,0.90779586]
[1674209334170,1.433073,20934.0,20933.0,1.06452966]
[1674209334436,1.469073,20934.0,20933.0,1.06452966]
[1674209334680,1.469073,20934.0,20933.0,1.06611096]
[1674209334917,1.469073,20934.0,20933.0,1.49717854]
[1674209335164,1.469073,20934.0,20933.0,1.38986766]
[1674209335468,1.469073,20934.0,20933.0,1.77739512]
[1674209335686,1.469073,20934.0,20933.0,1.77897642]
[1674209335955,1.478073,20934.0,20933.0,1.23313386]
[1674209336441,1.478073,20934.0,20933.0,0.90779586]
[1674209337176,1.478073,20934.0,20933.0,0.90937716]
[1674209337439,1.94507596,20934.0,20933.0,0.90779586]
[1674209341224,1.94507596,20934.0,20933.0,0.9060601]
[1674209345596,1.000382,20934.0,20933.0,1.59751212]
[1674209345788,0.522691,20934.0,20933.0,1.91156812]
[1674209346020,0.045,20934.0,20933.0,1.91156812]
[1674209346274,0.045,20934.0,20933.0,1.91164717]
[1674209346518,0.045,20934.0,20933.0,1.91156812]
[1674209346769,0.045,20934.0,20933.0,1.77203387]
[1674209347020,0.522691,20934.0,20933.0,1.32977026]
[1674209347269,0.522691,20934.0,20933.0,1.32984931]
[1674209347505,0.522691,20934.0,20933.0,1.32977026]
[1674209348514,0.522691,20934.0,20933.0,1.32984931]
[1674209349012,0.522691,20934.0,20933.0,1.31212926]
[1674209349266,0.522691,20934.0,20933.0,1.52314026]
[1674209350800,0.522691,20934.0,20933.0,1.31212926]
[1674209351039,1.000382,20934.0,20933.0,1.31212926]
[1674209352038,0.522691,20934.0,20933.0,1.31212926]
[1674209353056,0.87594048,20934.0,20933.0,1.31212926]
[1674209353297,0.87594048,20934.0,20933.0,1.19892926]
[1674209353809,0.87594048,20934.0,20933.0,0.88487326]
[1674209354065,0.87594048,20934.0,20933.0,1.22110826]
[1674209354602,1.35363148,20934.0,20933.0,0.88495231]
[1674209354849,1.35363148,20934.0,20933.0,0.88487326]
[1674209356094,1.35363148,20934.0,20933.0,1.03429938]
[1674209356363,1.35363148,20934.0,20933.0,1.36214538]
[1674209356894,0.522691,20934.0,20933.0,1.36214538]
[1674209358247,0.522691,20934.0,20933.0,1.74848028]
[1674209358493,0.522691,20934.0,20933.0,2.93180346]
[1674209358760,0.045,20934.0,20933.0,2.93180346]
[1674209359284,0.045,20934.0,20933.0,3.10267625]
[1674209360074,0.045,20934.0,20933.0,2.93180346]
[1674209360332,0.045,20934.0,20933.0,3.10267625]
[1674209360583,0.045,20934.0,20933.0,3.42478711]
[1674209360974,0.045,20934.0,20933.0,3.10267625]
[1674209361146,0.045,20934.0,20933.0,3.48145599]
[1674209361426,0.045,20934.0,20933.0,4.17734107]
[1674209361688,0.045,20934.0,20933.0,3.94952969]
[1674209361951,0.477609,20938.0,20934.0,0.15974232]
[1674209362269,0.477609,20938.0,20936.0,0.11434341]
[1674209362496,0.477609,20938.0,20937.0,0.323085]
[1674209363019,0.94645674,20938.0,20937.0,0.323085]
[1674209363280,0.94645674,20938.0,20937.0,0.51031935]
[1674209364085,0.477533,20941.0,20937.0,0.73861935]
[1674209364357,0.022,20938.0,20937.0,0.18723435]
[1674209364625,0.477548,20941.0,20937.0,0.72941235]
[1674209364901,0.477553,20941.0,20939.0,0.99907326]
[1674209365209,0.477553,20941.0,20940.0,0.314828]
[1674209365471,0.45660747,20942.0,20940.0,0.51751342]
[1674209365737,0.45660747,20942.0,20941.0,0.25079802]
[1674209366824,0.45660747,20942.0,20941.0,0.132619]
[1674209367086,0.45660747,20942.0,20941.0,0.139619]
[1674209367351,0.45660747,20942.0,20941.0,0.31470187]
[1674209368381,0.45660747,20942.0,20941.0,0.139619]
[1674209369423,0.11677158,20943.0,20941.0,0.139619]
[1674209369695,0.4995506,20943.0,20942.0,0.314795]
[1674209369993,0.4995506,20943.0,20942.0,0.40773791]
[1674209370510,0.9770366,20943.0,20942.0,0.40781693]
[1674209370772,0.9770366,20943.0,20942.0,0.40773791]
[1674209371031,0.9770366,20943.0,20942.0,0.41573791]
[1674209371560,0.59425758,20943.0,20942.0,0.41581693]
[1674209372593,1.07174358,20943.0,20942.0,0.41581693]
[1674209372883,1.52881026,20943.0,20942.0,0.41573791]
[1674209373136,1.52881026,20943.0,20942.0,0.008]
[1674209373397,1.41461026,20943.0,20942.0,0.008]
[1674209373659,1.41461026,20943.0,20942.0,0.330314]
[1674209373943,1.41461026,20943.0,20942.0,0.33039676]
[1674209374186,1.41461026,20943.0,20942.0,0.330314]
[1674209374696,1.41461026,20943.0,20942.0,0.008]
[1674209375214,1.41461026,20943.0,20942.0,0.00808276]
[1674209375496,1.41461026,20943.0,20942.0,0.008]
[1674209379978,1.68006455,20943.0,20942.0,0.008]
[1674209380242,1.91736658,20943.0,20942.0,0.008]
[1674209380519,1.59994358,20943.0,20942.0,0.008]
[1674209380802,1.92403858,20943.0,20942.0,0.008]
[1674209382432,2.40124027,20943.0,20942.0,0.008]
[1674209382951,3.08574027,20943.0,20942.0,0.008]
[1674209383483,3.20001803,20943.0,20942.0,0.008]
[1674209383745,3.08574027,20943.0,20942.0,0.008]
[1674209383996,3.08574027,20943.0,20942.0,0.00789899]
[1674209384256,3.20001803,20943.0,20942.0,0.00789899]
[1674209384569,3.20851803,20943.0,20942.0,0.00789899]
[1674209384861,3.19052261,20943.0,20942.0,0.00789899]
[1674209385125,3.19052261,20943.0,20942.0,9.9e-07]
[1674209385407,0.15,20942.0,20936.0,1.0]
[1674209385670,0.1142,20937.0,20936.0,0.10097423]
[1674209385951,2.08146297,20937.0,20935.0,1.35397049]
[1674209386224,1.74138997,20937.0,20935.0,1.35397049]
[1674209386515,1.547069,20937.0,20935.0,1.35397049]
[1674209386778,1.554069,20937.0,20935.0,1.35397049]
[1674209387082,1.88994454,20937.0,20935.0,0.88487326]
[1674209387314,1.89994454,20937.0,20935.0,0.88487326]
[1674209387848,1.89994454,20937.0,20935.0,1.26677401]
[1674209390783,0.63738257,20936.0,20935.0,0.88487326]
[1674209391060,1.59267457,20936.0,20935.0,0.88487326]
[1674209392055,1.60267457,20936.0,20935.0,0.88487326]
[1674209393798,1.93710257,20936.0,20934.0,0.00974232]
[1674209394049,0.1142,20935.0,20934.0,0.00974232]
[1674209394292,1.56649611,20935.0,20934.0,0.00974232]
[1674209394548,1.41649611,20935.0,20934.0,0.00974232]
[1674209395069,1.45249611,20935.0,20934.0,0.00974232]
[1674209395320,1.46149611,20935.0,20934.0,0.00974232]
[1674209396344,1.57569611,20935.0,20934.0,0.00974232]
[1674209396590,1.531946,20935.0,20934.0,0.00974232]
[1674209396848,1.540284,20935.0,20934.0,0.00974232]
[1674209397090,1.90598816,20935.0,20934.0,0.00974232]
[1674209397591,2.19698816,20935.0,20934.0,0.00974232]
[1674209397825,1.56685216,20935.0,20934.0,0.00974232]
[1674209398070,1.65785216,20935.0,20934.0,0.00974232]
[1674209398817,1.310736,20935.0,20934.0,0.00974232]
[1674209399094,2.06364267,20935.0,20934.0,0.00974232]
[1674209399333,1.75422067,20935.0,20934.0,0.00974232]
[1674209399603,2.37247967,20935.0,20934.0,0.00974232]
[1674209399951,1.610736,20935.0,20934.0,0.00974232]
[1674209400151,1.912922,20935.0,20934.0,0.00974232]
[1674209400634,2.07106041,20935.0,20934.0,0.00974232]
[1674209400876,2.38948141,20935.0,20934.0,0.00974232]
[1674209401380,1.77106041,20935.0,20934.0,0.00974232]
[1674209401626,2.07106041,20935.0,20934.0,0.00974232]
[1674209402147,2.39119241,20935.0,20934.0,0.00974232]
[1674209402421,2.41199541,20935.0,20934.0,0.00974232]
[1674209402683,2.07106041,20935.0,20934.0,0.00974232]
[1674209402921,2.38497041,20935.0,20934.0,0.00974232]
[1674209403439,2.18526041,20935.0,20934.0,0.00974232]
[1674209403692,2.037083,20935.0,20934.0,0.00974232]
[1674209403952,2.37115526,20935.0,20934.0,0.00974232]
[1674209404437,2.037083,20935.0,20934.0,0.00974232]
[1674209405939,2.037083,20935.0,20934.0,0.00967879]
[1674209410554,2.4139059,20935.0,20934.0,0.00967879]
[1674209410805,2.41382622,20935.0,20934.0,0.00967879]
[1674209411600,2.10167922,20935.0,20934.0,0.02131002]
[1674209411843,1.80167922,20935.0,20934.0,0.02131002]
[1674209412100,1.5733589,20935.0,20934.0,0.13941002]
[1674209412352,1.5733589,20935.0,20934.0,0.53124344]
[1674209412661,1.5733589,20935.0,20934.0,0.02131002]
[1674209413365,1.6875589,20935.0,20934.0,0.02131002]
[1674209413613,1.9875589,20935.0,20934.0,0.02131002]
[1674209414143,1.6875589,20935.0,20934.0,0.02131002]
[1674209415636,1.9875589,20935.0,20934.0,0.02131002]
[1674209417424,2.3216979,20935.0,20934.0,0.02131002]
[1674209417950,1.9875589,20935.0,20934.0,0.02131002]
[1674209418209,2.3145819,20935.0,20934.0,0.02131002]
[1674209418464,1.9875589,20935.0,20934.0,0.02131002]
[1674209418968,1.6875589,20935.0,20934.0,0.02131002]
[1674209420260,1.9875589,20935.0,20934.0,0.02131002]
[1674209420463,1.6875589,20935.0,20934.0,0.02131002]
[1674209420716,1.9875589,20935.0,20934.0,0.02131002]
[1674209420968,1.6875589,20935.0,20934.0,0.13948907]
[1674209421223,1.6875589,20935.0,20934.0,0.07420236]
[1674209421743,1.6875589,20935.0,20934.0,0.06452357]
[1674209422465,1.6875589,20935.0,20934.0,0.01163123]
[1674209423488,1.8733589,20935.0,20934.0,0.01163123]
[1674209423731,1.5733589,20935.0,20934.0,0.01163123]
[1674209426219,1.92624414,20935.0,20934.0,0.01163123]
[1674209427513,1.496536,20935.0,20934.0,0.01163123]
[1674209428254,1.8423019,20935.0,20934.0,0.01163123]
[1674209429485,1.496536,20935.0,20934.0,0.01163123]
[1674209429729,2.04257175,20935.0,20934.0,0.01163123]
[1674209429978,1.928403,20935.0,20934.0,0.01163123]
[1674209430230,2.01372747,20935.0,20934.0,0.01163123]
[1674209430474,2.31457747,20935.0,20934.0,0.01163123]
[1674209430729,2.01372747,20935.0,20934.0,0.01163123]
[1674209430992,2.33410847,20935.0,20934.0,0.01163123]
[1674209431247,2.50252577,20935.0,20934.0,0.01163123]
[1674209431490,2.04488575,20935.0,20934.0,0.01163123]
[1674209432720,2.21630239,20935.0,20934.0,0.01163123]
[1674209433492,2.10213364,20935.0,20934.0,0.01163123]
[1674209433996,2.33068141,20935.0,20934.0,0.01157007]
[1674209434767,2.10213364,20935.0,20934.0,0.01157007]
[1674209435023,2.64370829,20935.0,20934.0,0.01157007]
[1674209435282,2.52924189,20935.0,20934.0,0.01157007]
[1674209435532,2.33068141,20935.0,20934.0,0.01157007]
[1674209435779,2.77314337,20935.0,20934.0,0.01157007]
[1674209436018,2.33068141,20935.0,20934.0,0.01157007]
[1674209436281,2.15926477,20935.0,20934.0,0.01157007]
[1674209436521,2.33100337,20935.0,20934.0,0.01157007]
[1674209436813,2.78043537,20935.0,20934.0,0.01157007]
[1674209437039,2.7303011,20935.0,20934.0,0.01157007]
[1674209437289,2.69414504,20935.0,20934.0,0.01157007]
[1674209437539,2.80820098,20935.0,20934.0,0.01157007]
[1674209437864,3.27430668,20935.0,20934.0,0.01157007]
[1674209438287,2.80820098,20935.0,20934.0,0.01157007]
[1674209438532,3.25519999,20935.0,20934.0,0.01157007]
[1674209438789,2.57965321,20935.0,20934.0,0.01157007]
[1674209439035,2.80820098,20935.0,20934.0,0.01157007]
[1674209439252,2.57965321,20935.0,20934.0,0.01157007]
[1674209439977,2.80820098,20935.0,20934.0,0.01157007]
[1674209440212,3.22449645,20935.0,20934.0,0.01157007]
[1674209440453,3.85026193,20935.0,20934.0,0.01157007]
[1674209440704,3.95659122,20935.0,20934.0,0.01157007]
[1674209440954,3.72804345,20935.0,20934.0,0.01157007]
[1674209441202,3.95700021,20935.0,20934.0,0.01157007]
[1674209441742,2.15264176,20935.0,20934.0,0.13125129]
[1674209441988,1.83389375,20935.0,20934.0,0.59502914]
[1674209442231,1.83389375,20935.0,20934.0,0.44733207]
[1674209442232,1.082336,20935.0,20934.0,0.44733207]
[1674209442722,1.082336,20935.0,20934.0,0.44891329]
[1674209443007,1.082336,20935.0,20934.0,0.44733207]
[1674209443498,0.604668,20935.0,20934.0,0.44733207]
[1674209444218,1.54061674,20935.0,20934.0,0.317662]
[1674209444461,1.65431674,20935.0,20934.0,0.317662]
[1674209444697,1.196036,20935.0,20933.0,0.90384253]
[1674209444945,1.58194652,20935.0,20933.0,0.90384253]
[1674209445191,0.3,20934.0,20933.0,0.90384253]
[1674209445538,1.483382,20934.0,20933.0,0.90384253]
[1674209445701,1.59785524,20934.0,20933.0,0.01896927]
[1674209445937,1.92645624,20934.0,20933.0,0.01896927]
[1674209446173,1.63385524,20934.0,20933.0,0.01896927]
[1674209446663,1.72385524,20934.0,20933.0,0.01896927]
[1674209446902,2.13031653,20934.0,20933.0,0.01896927]
[1674209447156,2.01584329,20934.0,20933.0,0.01896927]
[1674209447393,1.71584329,20934.0,20933.0,0.01896927]
[1674209448147,2.01584329,20934.0,20933.0,0.01896927]
[1674209450602,1.71584329,20934.0,20933.0,0.01896927]
[1674209451146,1.90164329,20934.0,20933.0,0.01896927]
[1674209451391,1.60164329,20934.0,20933.0,0.01896927]
[1674209451632,1.90164329,20934.0,20933.0,0.01896927]
[1674209452137,0.94626129,20934.0,20933.0,0.01896927]
[1674209452383,1.90164329,20934.0,20933.0,0.01896927]
[1674209453180,1.495182,20934.0,20933.0,0.01896927]
[1674209453343,1.93717552,20934.0,20933.0,0.01896927]
[1674209453860,0.22897544,20937.0,20933.0,0.25488718]
[1674209454113,0.34333378,20940.0,20934.0,1.58305237]
[1674209454372,0.36228125,20941.0,20938.0,0.28581577]
[1674209454603,0.00471702,20944.0,20941.0,0.36228124]
[1674209454604,0.43463037,20942.0,20941.0,0.36228124]
[1674209454863,0.43463037,20942.0,20941.0,1.24062485]
[1674209455103,0.37145869,20943.0,20941.0,0.84018853]